fUSD/lending_fUSD_20241001
["ID","MTS","AMOUNT","RATE_DAILY","PERIOD"]
[339647725,1727801746336,-3262.83,0.00038356,120]
[339647726,1727801746361,-500.0,0.00038356,120]
[339647727,1727801746387,-625.33,0.00038356,120]
[339647728,1727801746424,-500.0,0.00038356,120]
[339647729,1727801746454,-2368.91,0.00038356,120]
[339647730,1727801746480,-2991.58,0.00038356,120]
[339647731,1727801746504,-500.0,0.00038356,120]
[339647732,1727801746530,-500.0,0.00038356,120]
[339647733,1727801746555,-500.0,0.00038356,120]
[339647734,1727801746582,-1310.47,0.00038356,120]
[339647735,1727801746607,-500.0,0.00038356,120]
[339647736,1727801746632,-500.0,0.00038356,120]
[339647737,1727801746665,-500.0,0.00038356,120]
[339647738,1727801746690,-500.0,0.00038356,120]
[339647739,1727801746716,-509.24860533,0.00038356,120]
[339647740,1727801746742,-500.0,0.00038356,120]
[339647741,1727801746768,-2776.09,0.00038356,120]
[339647742,1727801746793,-500.0,0.00038356,120]
[339647743,1727801746819,-871.7,0.00038356,120]
[339647744,1727801746846,-500.0,0.00038356,120]
[339647745,1727801746873,-501.89363508,0.00038356,120]
[339647746,1727801746898,-500.0,0.00038356,120]
[339647747,1727801746925,-500.0,0.00038356,120]
[339647748,1727801746949,-1172.0,0.00038356,120]
[339647749,1727801746974,-1845.9,0.00038356,120]
[339647750,1727801746998,-500.0,0.00038356,120]
[339647751,1727801747024,-500.0,0.00038356,120]
[339647752,1727801747048,-500.0,0.00038356,120]
[339647753,1727801747073,-500.0,0.00038356,120]
[339647754,1727801747098,-2061.0,0.00038356,120]
[339647755,1727801747123,-500.0,0.00038356,120]
[339647756,1727801747147,-500.0,0.00038356,120]
[339647757,1727801747178,-500.0,0.00038356,120]
[339647758,1727801747204,-500.0,0.00038356,120]
[339647759,1727801747231,-500.0,0.00038356,120]
[339647760,1727801747256,-500.0,0.00038356,120]
[339647761,1727801747282,-2857.15,0.00038356,120]
[339647762,1727801747309,-500.0,0.00038356,120]
[339647763,1727801747335,-500.0,0.00038356,120]
[339647764,1727801747361,-501.38176179,0.00038356,120]
[339647765,1727801747588,-500.0,0.00038356,120]
[339647766,1727801747614,-789.15,0.00038356,120]
[339647767,1727801747641,-500.0,0.00038356,120]
[339647768,1727801747671,-500.0,0.00038356,120]
[339647769,1727801747699,-500.0,0.00038356,120]
[339647770,1727801747727,-500.0,0.00038356,120]
[339647771,1727801747755,-509.48,0.00038356,120]
[339647772,1727801747781,-500.0,0.00038356,120]
[339647773,1727801747807,-500.0,0.00038356,120]
[339647774,1727801747832,-500.0,0.00038356,120]
[339647775,1727801747857,-500.0,0.00038356,120]
[339647776,1727801747883,-500.0,0.00038356,120]
[339647777,1727801747913,-500.0,0.00038356,120]
[339647778,1727801747939,-501.52367966,0.00038356,120]
[339647779,1727801747967,-500.0,0.00038356,120]
[339647780,1727801747994,-500.0,0.00038356,120]
[339647781,1727801748021,-500.0,0.00038356,120]
[339647782,1727801748048,-500.0,0.00038356,120]
[339647783,1727801748075,-357.67939922,0.00038356,120]
[339647784,1727801748101,-1141.07,0.00038356,120]
[339647785,1727801748126,-500.0,0.00038356,120]
[339647786,1727801748155,-500.0,0.00038356,120]
[339647787,1727801748182,-500.0,0.00038356,120]
[339647788,1727801748209,-500.0,0.00038356,120]
[339647789,1727801748236,-500.0,0.00038356,120]
[339647790,1727801748264,-500.0,0.00038356,120]
[339647791,1727801748291,-837.78,0.00038356,120]
[339647792,1727801748317,-853.84,0.00038356,120]
[339647793,1727801748345,-500.0,0.00038356,120]
[339647794,1727801748372,-500.0,0.00038356,120]
[339647795,1727801748399,-500.0,0.00038356,120]
[339647796,1727801748429,-500.0,0.00038356,120]
[339647797,1727801748456,-500.0,0.00038356,120]
[339647798,1727801748484,-500.0,0.00038356,120]
[339647799,1727801748511,-500.0,0.00038356,120]
[339647800,1727801748538,-1448.75,0.00038356,120]
[339647801,1727801748567,-500.0,0.00038356,120]
[339647802,1727801748595,-500.0,0.00038356,120]
[339647803,1727801748622,-500.0,0.00038356,120]
[339647804,1727801748649,-1419.38,0.00038356,120]
[339647805,1727801748682,-500.0,0.00038356,120]
[339647806,1727801748709,-500.0,0.00038356,120]
[339647807,1727801748738,-500.0,0.00038356,120]
[339647808,1727801748767,-500.0,0.00038356,120]
[339647809,1727801748793,-503.19562195,0.00038356,120]
[339647810,1727801748821,-500.0,0.00038356,120]
[339647811,1727801748848,-943.63,0.00038356,120]
[339647812,1727801748875,-1068.87,0.00038356,120]
[339647813,1727801748905,-696.52,0.00038356,120]
[339647814,1727801748933,-1332.27,0.00038356,120]
[339647815,1727801748961,-966.05,0.00038356,120]
[339647816,1727801748990,-500.0,0.00038356,120]
[339647817,1727801749017,-500.0,0.00038356,120]
[339647818,1727801749044,-500.0,0.00038356,120]
[339647819,1727801749072,-500.0,0.00038356,120]
[339647820,1727801749098,-4711.38,0.00038356,120]
[339647821,1727801749125,-1254.63,0.00038356,120]
[339647822,1727801749156,-630.5,0.00038356,120]
[339647823,1727801749186,-833.13,0.00038356,120]
[339647824,1727801749214,-754.74,0.00038356,120]
[339647825,1727801749243,-833.13,0.00038356,120]
[339647826,1727801749269,-833.13,0.00038356,120]
[339647827,1727801749296,-500.0,0.00038356,120]
[339647828,1727801749322,-833.13,0.00038356,120]
[339647829,1727801749348,-833.13,0.00038356,120]
[339647830,1727801749375,-502.53307021,0.00038356,120]
[339647831,1727801749405,-833.13,0.00038356,120]
[339647832,1727801749434,-1956.73,0.00038356,120]
[339647833,1727801749462,-833.13,0.00038356,120]
[339647834,1727801749490,-833.13,0.00038356,120]
[339647835,1727801749519,-833.13,0.00038356,120]
[339647836,1727801749546,-1486.15,0.00038356,120]
[339647837,1727801749574,-833.13,0.00038356,120]
[339647838,1727801749602,-502.10521356,0.00038356,120]
[339647839,1727801749631,-833.13,0.00038356,120]
[339647840,1727801749667,-909.5,0.00038356,120]
[339647841,1727801749703,-833.13,0.00038356,120]
[339647842,1727801749732,-1506.61,0.00038356,120]
[339647843,1727801749764,-833.13,0.00038356,120]
[339647844,1727801749792,-833.13,0.00038356,120]
[339647845,1727801749818,-500.0,0.00038356,120]
[339647846,1727801749844,-500.0,0.00038356,120]
[339647847,1727801749872,-833.13,0.00038356,120]
[339647848,1727801749900,-500.0,0.00038356,120]
[339647849,1727801749930,-833.13,0.00038356,120]
[339647850,1727801749959,-833.13,0.00038356,120]
[339647851,1727801749986,-500.0,0.00038356,120]
[339647852,1727801750016,-833.13,0.00038356,120]
[339647853,1727801750044,-997.9,0.00038356,120]
[339647854,1727801750071,-500.0,0.00038356,120]
[339647855,1727801750100,-833.13,0.00038356,120]
[339647856,1727801750127,-500.0,0.00038356,120]
[339647857,1727801750156,-833.13,0.00038356,120]
[339647858,1727801750185,-833.13,0.00038356,120]
[339647859,1727801750213,-500.0,0.00038356,120]
[339647860,1727801750241,-833.13,0.00038356,120]
[339647861,1727801750268,-625.78,0.00038356,120]
[339647862,1727801750296,-833.13,0.00038356,120]
[339647863,1727801750323,-625.78,0.00038356,120]
[339647864,1727801750348,-625.78,0.00038356,120]
[339647865,1727801750375,-833.16,0.00038356,120]
[339647866,1727801750402,-500.0,0.00038356,120]
[339647867,1727801750430,-625.78,0.00038356,120]
[339647868,1727801750459,-625.78,0.00038356,120]
[339647869,1727801750485,-500.0,0.00038356,120]
[339647870,1727801750717,-625.78,0.00038356,120]
[339647871,1727801750744,-625.78,0.00038356,120]
[339647872,1727801750771,-9947.374407,0.00038356,120]
[339647873,1727801750795,-625.78,0.00038356,120]
[339647874,1727801750823,-625.78,0.00038356,120]
[339647875,1727801750851,-500.0,0.00038356,120]
[339647876,1727801750877,-625.78,0.00038356,120]
[339647877,1727801750904,-625.78,0.00038356,120]
[339647878,1727801750931,-500.0,0.00038356,120]
[339647879,1727801750957,-500.0,0.00038356,120]
[339647880,1727801750983,-625.78,0.00038356,120]
[339647881,1727801751009,-500.0,0.00038356,120]
[339647882,1727801751036,-625.78,0.00038356,120]
[339647883,1727801751064,-1168.59,0.00038356,120]
[339647884,1727801751091,-625.78,0.00038356,120]
[339647885,1727801751118,-534.81,0.00038356,120]
[339647886,1727801751145,-500.0,0.00038356,120]
[339647887,1727801751178,-625.78,0.00038356,120]
[339647888,1727801751206,-625.78,0.00038356,120]
[339647889,1727801751233,-527.16,0.00038356,120]
[339647890,1727801751260,-625.78,0.00038356,120]
[339647891,1727801751287,-625.78,0.00038356,120]
[339647892,1727801751314,-625.78,0.00038356,120]
[339647893,1727801751340,-625.78,0.00038356,120]
[339647894,1727801751367,-393.00382893,0.00038356,120]
[339647895,1727801751396,-500.0,0.00038356,120]
[339647896,1727801751429,-500.0,0.00038356,120]
[339647897,1727801751456,-625.78,0.00038356,120]
[339647898,1727801751483,-502.20264465,0.00038356,120]
[339647899,1727801751510,-625.78,0.00038356,120]
[339647900,1727801751537,-625.78,0.00038356,120]
[339647901,1727801751564,-625.99727119,0.00038356,120]
[339647902,1727801751591,-500.0,0.00038356,120]
[339647903,1727801751619,-501.95038495,0.00038356,120]
[339647904,1727801751647,-1133.14,0.00038356,120]
[339647905,1727801751678,-500.0,0.00038356,120]
[339647906,1727801751706,-1683.2,0.00038356,120]
[339647907,1727801751736,-1433.18,0.00038356,120]
[339647908,1727801751765,-578.67,0.00038356,120]
[339647909,1727801751792,-2223.83,0.00038356,120]
[339647910,1727801751818,-512.38007492,0.00038356,120]
[339647911,1727801751845,-500.0,0.00038356,120]
[339647912,1727801751871,-500.0,0.00038356,120]
[339647913,1727801751897,-500.0,0.00038356,120]
[339647914,1727801751925,-500.0,0.00038356,120]
[339647915,1727801751951,-1129.67,0.00038356,120]
[339647916,1727801751977,-1463.81,0.00038356,120]
[339647917,1727801752003,-500.0,0.00038356,120]
[339647918,1727801752032,-2907.14,0.00038356,120]
[339647919,1727801752058,-631.55,0.00038356,120]
[339647920,1727801752084,-1501.0,0.00038356,120]
[339647921,1727801752110,-500.0,0.00038356,120]
[339647922,1727801752135,-500.0,0.00038356,120]
[339647923,1727801752166,-530.95702541,0.00038356,120]
[339647924,1727801752194,-500.0,0.00038356,120]
[339647925,1727801752222,-931.69,0.00038356,120]
[339647926,1727801752252,-267.24332102,0.00038356,120]
[339647927,1727801752279,-500.0,0.00038356,120]
[339647928,1727801752306,-688.83,0.00038356,120]
[339647929,1727801752334,-859.85,0.00038356,120]
[339647930,1727801752362,-500.0,0.00038356,120]
[339647931,1727801752389,-500.0,0.00038356,120]
[339647932,1727801752418,-500.0,0.00038356,120]
[339647933,1727801752444,-257.75204926,0.00038356,120]
[339647934,1727801752471,-2574.75,0.00038356,120]
[339647935,1727801752497,-2882.51,0.00038356,120]
[339647936,1727801752523,-500.0,0.00038356,120]
[339647937,1727801752549,-500.0,0.00038356,120]
[339647938,1727801752576,-500.0,0.00038356,120]
[339647939,1727801752604,-804.84,0.00038356,120]
[339647940,1727801752631,-500.0,0.00038356,120]
[339647941,1727801752659,-500.0,0.00038356,120]
[339647942,1727801752688,-500.0,0.00038356,120]
[339647943,1727801752714,-500.0,0.00038356,120]
[339647944,1727801752740,-1778.4,0.00038356,120]
[339647945,1727801752767,-515.1,0.00038356,120]
[339647946,1727801752794,-775.59,0.00038356,120]
[339647947,1727801752819,-1286.0,0.00038356,120]
[339647948,1727801752845,-1397.93,0.00038356,120]
[339647949,1727801752871,-692.07,0.00038356,120]
[339647950,1727801752896,-1991.74,0.00038356,120]
[339647951,1727801752924,-500.0,0.00038356,120]
[339647952,1727801752950,-2800.66,0.00038356,120]
[339647953,1727801752976,-500.0,0.00038356,120]
[339647954,1727801753001,-500.0,0.00038356,120]
[339647955,1727801753028,-500.0,0.00038356,120]
[339647956,1727801753053,-500.0,0.00038356,120]
[339647957,1727801753077,-500.0,0.00038356,120]
[339647958,1727801753102,-500.0,0.00038356,120]
[339647959,1727801753127,-500.0,0.00038356,120]
[339647960,1727801753153,-661.53,0.00038356,120]
[339647961,1727801753183,-1372.95,0.00038356,120]
[339647962,1727801753210,-500.0,0.00038356,120]
[339647963,1727801753238,-500.0,0.00038356,120]
[339647964,1727801753263,-1477.24,0.00038356,120]
[339647965,1727801753289,-500.0,0.00038356,120]
[339647966,1727801753315,-1425.49,0.00038356,120]
[339647967,1727801753340,-500.0,0.00038356,120]
[339647968,1727801753364,-500.0,0.00038356,120]
[339647969,1727801753391,-999.0,0.00038356,120]
[339647970,1727801753419,-500.0,0.00038356,120]
[339647971,1727801753444,-524.16,0.00038356,120]
[339647972,1727801753470,-668.07,0.00038356,120]
[339647973,1727801753495,-500.0,0.00038356,120]
[339647974,1727801753520,-956.15,0.00038356,120]
[339647975,1727801753737,-642.17,0.00038356,120]
[339647976,1727801753767,-2703.66,0.00038356,120]
[339647977,1727801753793,-2586.99,0.00038356,120]
[339647978,1727801753818,-500.0,0.00038356,120]
[339647979,1727801753844,-500.0,0.00038356,30]
[339647980,1727801753869,-500.0,0.00038356,120]
[339647981,1727801753894,-567.36,0.00038356,120]
[339647982,1727801753921,-882.69,0.00038356,120]
[339647983,1727801753946,-671.8,0.00038356,120]
[339647984,1727801753971,-1450.67,0.00038356,120]
[339647985,1727801753996,-500.0,0.00038356,120]
[339647986,1727801754020,-547.03485984,0.00038356,120]
[339647987,1727801754046,-500.0,0.00038356,120]
[339647988,1727801754071,-1816.35,0.00038356,120]
[339647989,1727801754098,-778.95,0.00038356,120]
[339647990,1727801754123,-500.0,0.00038356,120]
[339647991,1727801754148,-1116.04,0.00038356,120]
[339647992,1727801754176,-3192.57,0.00038356,120]
[339647993,1727801754202,-500.0,0.00038356,120]
[339647994,1727801754228,-743.78,0.00038356,120]
[339647995,1727801754253,-1605.08,0.00038356,120]
[339647996,1727801754279,-627.04,0.00038356,120]
[339647997,1727801754305,-500.0,0.00038356,120]
[339647998,1727801754330,-1825.45,0.00038356,120]
[339647999,1727801754355,-500.0,0.00038356,120]
[339648000,1727801754382,-500.0,0.00038356,120]
[339648001,1727801754413,-974.68,0.00038356,120]
[339648002,1727801754439,-500.0,0.00038356,120]
[339648003,1727801754465,-2928.52,0.00038356,120]
[339648004,1727801754492,-500.0,0.00038356,120]
[339648005,1727801754518,-1051.28,0.00038356,120]
[339648006,1727801754543,-895.68,0.00038356,120]
[339648007,1727801754568,-244.59722474,0.00038356,120]
[339648008,1727801754595,-1624.54,0.00038356,120]
[339648009,1727801754620,-568.05,0.00038356,120]
[339648010,1727801754646,-3167.05,0.00038356,120]
[339648011,1727801754676,-500.0,0.00038356,120]
[339648012,1727801754701,-3738.11,0.00038356,120]
[339648013,1727801754727,-500.0,0.00038356,120]
[339648014,1727801754752,-500.0,0.00038356,120]
[339648015,1727801754777,-2464.24,0.00038356,120]
[339648016,1727801754803,-500.0,0.00038356,120]
[339648017,1727801754828,-500.0,0.00038356,120]
[339648018,1727801754854,-500.0,0.00038356,120]
[339648019,1727801754879,-550.99,0.00038356,120]
[339648020,1727801754905,-596.28,0.00038356,120]
[339648021,1727801754938,-500.0,0.00038356,120]
[339648022,1727801754963,-972.21,0.00038356,120]
[339648023,1727801754988,-1297.71,0.00038356,120]
[339648024,1727801755014,-500.0,0.00038356,120]
[339648025,1727801755040,-500.0,0.00038356,120]
[339648026,1727801755065,-500.0,0.00038356,120]
[339648027,1727801755092,-2668.85,0.00038356,120]
[339648028,1727801755118,-500.0,0.00038356,120]
[339648029,1727801755142,-825.32,0.00038356,120]
[339648030,1727801755176,-500.0,0.00038356,120]
[339648031,1727801755202,-3053.04,0.00038356,120]
[339648032,1727801755229,-548.81,0.00038356,120]
[339648033,1727801755255,-715.33,0.00038356,120]
[339648034,1727801755282,-890.0,0.00038356,120]
[339648035,1727801755310,-500.0,0.00038356,120]
[339648036,1727801755336,-500.0,0.00038356,120]
[339648037,1727801755363,-881.7,0.00038356,120]
[339648038,1727801755391,-568.42,0.00038356,120]
[339648039,1727801755418,-1133.95,0.00038356,120]
[339648040,1727801755443,-1054.99,0.00038356,120]
[339648041,1727801755468,-500.0,0.00038356,120]
[339648042,1727801755493,-1528.63,0.00038356,120]
[339648043,1727801755518,-500.0,0.00038356,120]
[339648044,1727801755542,-500.0,0.00038356,120]
[339648045,1727801755568,-2167.27,0.00038356,120]
[339648046,1727801755596,-500.0,0.00038356,30]
[339648047,1727801755624,-500.0,0.00038356,120]
[339648048,1727801755650,-5316.99,0.00038356,120]
[339648049,1727801755678,-500.0,0.00038356,120]
[339648050,1727801755703,-1619.07,0.00038356,120]
[339648051,1727801755729,-606.62,0.00038356,120]
[339648052,1727801755754,-500.0,0.00038356,120]
[339648053,1727801755779,-1493.95,0.00038356,120]
[339648054,1727801755804,-500.0,0.00038356,120]
[339648055,1727801755828,-500.0,0.00038356,120]
[339648056,1727801755854,-500.0,0.00038356,120]
[339648057,1727801755880,-854.5,0.00038356,120]
[339648058,1727801755906,-500.0,0.00038356,120]
[339648059,1727801755934,-3541.77,0.00038356,120]
[339648060,1727801755961,-825.12,0.00038356,120]
[339648061,1727801755999,-1428.3,0.00038356,120]
[339648062,1727801756038,-500.0,0.00038356,120]
[339648063,1727801756064,-500.0,0.00038356,120]
[339648064,1727801756090,-525.81,0.00038356,120]
[339648065,1727801756118,-500.0,0.00038356,120]
[339648066,1727801756146,-1337.07,0.00038356,120]
[339648067,1727801756175,-204.77644235,0.00038356,120]
[339648068,1727801756201,-500.0,0.00038356,120]
[339648069,1727801756228,-500.0,0.00038356,120]
[339648070,1727801756256,-1435.56,0.00038356,120]
[339648071,1727801756283,-1808.55,0.00038356,120]
[339648072,1727801756310,-165.28761784,0.00038356,120]
[339648073,1727801756336,-500.0,0.00038356,120]
[339648074,1727801756364,-1480.23,0.00038356,120]
[339648075,1727801756391,-2740.56,0.00038356,120]
[339648076,1727801756420,-1142.69,0.00038356,120]
[339648077,1727801756447,-500.0,0.00038356,120]
[339648078,1727801756474,-500.0,0.00038356,120]
[339648079,1727801756500,-1207.96,0.00038356,120]
[339648080,1727801756720,-500.0,0.00038356,120]
[339648081,1727801756749,-500.0,0.00038356,120]
[339648082,1727801756778,-500.0,0.00038356,120]
[339648083,1727801756807,-500.0,0.00038356,120]
[339648084,1727801756834,-500.0,0.00038356,120]
[339648085,1727801756860,-500.0,0.00038356,120]
[339648086,1727801756886,-658.12,0.00038356,120]
[339648087,1727801756914,-500.0,0.00038356,120]
[339648088,1727801756940,-500.0,0.00038356,120]
[339648089,1727801756967,-500.0,0.00038356,120]
[339648090,1727801756993,-500.0,0.00038356,120]
[339648091,1727801757021,-500.0,0.00038356,120]
[339648092,1727801757049,-766.18,0.00038356,120]
[339648093,1727801757076,-500.0,0.00038356,120]
[339648094,1727801757103,-500.0,0.00038356,120]
[339648095,1727801757130,-500.0,0.00038356,120]
[339648096,1727801757160,-500.0,0.00038356,120]
[339648097,1727801757191,-500.0,0.00038356,120]
[339648098,1727801757219,-500.0,0.00038356,120]
[339648099,1727801757247,-500.0,0.00038356,120]
[339648100,1727801757274,-1194.42,0.00038356,120]
[339648101,1727801757302,-500.0,0.00038356,120]
[339648102,1727801757330,-500.0,0.00038356,120]
[339648103,1727801757358,-212.684611,0.00038356,120]
[339648104,1727801757387,-827.03,0.00038356,120]
[339648105,1727801757415,-500.0,0.00038356,120]
[339648106,1727801757445,-2761.22,0.00038356,120]
[339648107,1727801757472,-1661.65,0.00038356,120]
[339648108,1727801757499,-500.0,0.00038356,120]
[339648109,1727801757527,-500.0,0.00038356,120]
[339648110,1727801757555,-500.0,0.00038356,120]
[339648111,1727801757582,-309.39699401,0.00038356,120]
[339648112,1727801757609,-500.0,0.00038356,120]
[339648113,1727801757639,-2209.57,0.00038356,120]
[339648114,1727801757667,-1062.51,0.00038356,120]
[339648115,1727801757707,-500.0,0.00038356,120]
[339648116,1727801757735,-500.0,0.00038356,120]
[339648117,1727801757765,-712.51,0.00038356,120]
[339648118,1727801757793,-235.97118955,0.00038356,120]
[339648119,1727801757821,-500.0,0.00038356,120]
[339648120,1727801757848,-500.0,0.00038356,120]
[339648121,1727801757876,-500.0,0.00038356,120]
[339648122,1727801757903,-1047.64,0.00038356,120]
[339648123,1727801757930,-500.0,0.00038356,60]
[339648124,1727801757957,-1287.42,0.00038356,120]
[339648125,1727801757984,-1553.97,0.00038356,120]
[339648126,1727801758011,-1136.99,0.00038356,120]
[339648127,1727801758039,-500.0,0.00038356,120]
[339648128,1727801758066,-500.0,0.00038356,120]
[339648129,1727801758095,-1882.87,0.00038356,120]
[339648130,1727801758122,-500.0,0.00038356,120]
[339648131,1727801758148,-18312.29,0.00038356,120]
[339648132,1727801758183,-2149.87,0.00038356,120]
[339648133,1727801758216,-500.0,0.00038356,120]
[339648134,1727801758244,-859.42,0.00038356,120]
[339648135,1727801758273,-3023.55,0.00038356,120]
[339648136,1727801758301,-500.0,0.00038356,120]
[339648137,1727801758329,-500.0,0.00038356,120]
[339648138,1727801758357,-890.3,0.00038356,120]
[339648139,1727801758386,-823.79,0.00038356,120]
[339648140,1727801758412,-501.11422931,0.00038356,120]
[339648141,1727801758440,-502.69710373,0.00038356,120]
[339648142,1727801758467,-1388.4,0.00038356,120]
[339648143,1727801758494,-500.0,0.00038356,120]
[339648144,1727801758521,-1513.87,0.00038356,120]
[339648145,1727801758547,-750.22,0.00038356,120]
[339648146,1727801758575,-500.0,0.00038356,120]
[339648147,1727801758603,-1031.31,0.00038356,120]
[339648148,1727801758630,-528.78,0.00038356,120]
[339648149,1727801758660,-1870.67,0.00038356,120]
[339648150,1727801758697,-1171.32,0.00038356,120]
[339648151,1727801758727,-500.0,0.00038356,120]
[339648152,1727801758754,-663.6,0.00038356,120]
[339648153,1727801758782,-1044.96,0.00038356,120]
[339648154,1727801758809,-831.33,0.00038356,120]
[339648155,1727801758835,-158.05587544,0.00038356,120]
[339648156,1727801758863,-1036.99,0.00038356,120]
[339648157,1727801758890,-500.0,0.00038356,120]
[339648158,1727801758916,-704.05,0.00038356,120]
[339648159,1727801758942,-1111.11,0.00038356,120]
[339648160,1727801758967,-764.74,0.00038356,120]
[339648161,1727801758992,-1099.12,0.00038356,120]
[339648162,1727801759018,-528.55,0.00038356,120]
[339648163,1727801759045,-4092.45,0.00038356,120]
[339648164,1727801759070,-500.0,0.00038356,120]
[339648165,1727801759097,-2874.69,0.00038356,120]
[339648166,1727801759124,-500.0,0.00038356,120]
[339648167,1727801759151,-940.02,0.00038356,120]
[339648168,1727801759193,-692.9,0.00038356,120]
[339648169,1727801759220,-500.0,0.00038356,120]
[339648170,1727801759248,-500.0,0.00038356,120]
[339648171,1727801759275,-500.0,0.00038356,120]
[339648172,1727801759302,-500.0,0.00038356,120]
[339648173,1727801759330,-2604.52,0.00038356,120]
[339648174,1727801759356,-1025.17,0.00038356,120]
[339648175,1727801759383,-500.0,0.00038356,120]
[339648176,1727801759410,-2936.48,0.00038356,120]
[339648177,1727801759437,-500.0,0.00038356,120]
[339648178,1727801759463,-500.36,0.00038356,120]
[339648179,1727801759489,-839.06,0.00038356,120]
[339648180,1727801759516,-500.0,0.00038356,120]
[339648181,1727801759541,-500.0,0.00038356,120]
[339648182,1727801759566,-500.0,0.00038356,120]
[339648183,1727801759591,-642.4,0.00038356,120]
[339648184,1727801759778,-500.0,0.00038356,120]
[339648185,1727801759838,-1114.17,0.00038356,120]
[339648186,1727801759864,-500.0,0.00038356,120]
[339648187,1727801759891,-500.0,0.00038356,120]
[339648188,1727801759921,-500.0,0.00038356,120]
[339648189,1727801759948,-500.0,0.00038356,120]
[339648190,1727801759973,-750.34,0.00038356,120]
[339648191,1727801759999,-500.0,0.00038356,120]
[339648192,1727801760028,-500.0,0.00038356,120]
[339648193,1727801760056,-845.47,0.00038356,120]
[339648194,1727801760086,-500.0,0.00038356,120]
[339648195,1727801760115,-500.0,0.00038356,120]
[339648196,1727801760143,-625.81,0.00038356,120]
[339648197,1727801760175,-500.0,0.00038356,120]
[339648198,1727801760205,-500.0,0.00038356,120]
[339648199,1727801760234,-1107.36,0.00038356,120]
[339648200,1727801760262,-500.0,0.00038356,120]
[339648201,1727801760290,-500.0,0.00038356,120]
[339648202,1727801760318,-500.0,0.00038356,120]
[339648203,1727801760346,-500.0,0.00038356,120]
[339648204,1727801760375,-500.0,0.00038356,120]
[339648205,1727801760402,-1968.13,0.00038356,120]
[339648206,1727801760433,-500.0,0.00038356,120]
[339648207,1727801760461,-500.0,0.00038356,120]
[339648208,1727801760488,-500.0,0.00038356,120]
[339648209,1727801760514,-159.23450499,0.00038356,120]
[339648210,1727801760540,-500.0,0.00038356,120]
[339648211,1727801760567,-595.71,0.00038356,120]
[339648212,1727801760595,-637.59,0.00038356,120]
[339648213,1727801760622,-500.0,0.00038356,120]
[339648214,1727801760651,-500.0,0.00038356,120]
[339648215,1727801760686,-500.0,0.00038356,120]
[339648216,1727801760721,-500.0,0.00038356,120]
[339648217,1727801760750,-500.0,0.00038356,120]
[339648218,1727801760779,-590.14,0.00038356,120]
[339648219,1727801760808,-1623.87,0.00038356,120]
[339648220,1727801760836,-1476.54,0.00038356,120]
[339648221,1727801760865,-2094.48,0.00038356,120]
[339648222,1727801760893,-500.0,0.00038356,120]
[339648223,1727801760924,-1660.84,0.00038356,120]
[339648224,1727801760952,-500.0,0.00038356,120]